bitfinex-derivatives/quotes_BTCF0:USTF0_20251119
["timestamp","ask_amount","ask_price","bid_price","bid_amount"]
[1763560860361,0.01394,91496.0,91495.0,0.1093757]
[1763560860767,0.03588,91496.0,91495.0,0.1093757]
[1763560860974,0.05777,91496.0,91495.0,0.1093757]
[1763560861167,0.05777,91496.0,91495.0,0.2149757]
[1763560861378,0.01341,91504.0,91503.0,0.1093662]
[1763560861570,0.05761,91504.0,91503.0,0.1093662]
[1763560861876,0.0442,91502.0,91501.0,0.3608]
[1763560862074,0.0442,91502.0,91501.0,0.4664]
[1763560862573,0.0442,91501.0,91500.0,0.1093687]
[1763560862765,0.07089125,91501.0,91500.0,0.1093687]
[1763560863073,0.07088656,91501.0,91500.0,0.2149687]
[1763560865171,0.0442,91493.0,91492.0,0.4701793]
[1763560865364,0.0442,91493.0,91492.0,0.3608]
[1763560865561,0.0442,91487.0,91486.0,0.10955052]
[1763560865766,0.07079902,91487.0,91486.0,0.10955052]
[1763560868975,0.0442,91487.0,91486.0,0.10955052]
[1763560869778,0.05777,91496.0,91495.0,0.1093757]
[1763560870075,0.08434724,91496.0,91495.0,0.2149757]
[1763560870378,0.05777,91496.0,91495.0,0.2149757]
[1763560871083,0.05777,91496.0,91495.0,0.1093757]
[1763560871381,0.05777,91496.0,91495.0,0.2149757]
[1763560872377,0.05777,91496.0,91495.0,0.1093757]
[1763560872676,0.05777,91496.0,91495.0,0.2149757]
[1763560873086,0.05777,91496.0,91495.0,0.1056]
[1763560873683,0.0442,91491.0,91490.0,0.3608]
[1763560882282,0.0442,91491.0,91490.0,0.4701817]
[1763560882589,0.05777,91496.0,91495.0,0.1093758]
[1763560889389,0.1229451,91496.0,91495.0,0.1056]
[1763560889592,0.05859,91496.0,91495.0,0.1056]
[1763560890799,0.05859,91496.0,91495.0,0.2149757]
[1763560894891,0.05697,91496.0,91495.0,0.2149757]
[1763560896186,0.03514,91496.0,91495.0,0.2149757]
[1763560897285,0.05697,91496.0,91495.0,0.2149757]
[1763560904504,0.05697,91496.0,91490.0,0.3608]
[1763560904505,0.0434,91491.0,91490.0,0.4701808]
[1763560904708,0.0434,91491.0,91490.0,0.5757808]
[1763560907113,0.05697,91496.0,91495.0,0.1093757]
[1763560907304,0.03514,91496.0,91495.0,0.1093757]
[1763560907702,0.05697,91496.0,91495.0,0.1093757]
[1763560910817,0.01357,91496.0,91495.0,0.1093757]
[1763560911310,0.03514,91496.0,91495.0,0.1093757]
[1763560911510,0.05697,91496.0,91495.0,0.1093757]
[1763560917708,0.03567,91488.0,91487.0,0.1093853]
[1763560917908,0.05724,91488.0,91487.0,0.2149453]
[1763560918910,0.05724,91488.0,91486.0,0.00016402]
[1763560918911,0.1093853,91487.0,91486.0,0.00016402]
[1763560919107,0.4042,91487.0,91486.0,0.10572402]
[1763560920219,0.4042,91487.0,91486.0,0.21511052]
[1763560920920,0.4042,91487.0,91471.0,0.4702042]
[1763560920921,0.05724,91464.0,91463.0,0.07872546]
[1763560921117,0.0434,91453.0,91452.0,0.3608]
[1763560921318,0.0434,91444.0,91443.0,0.1094379]
[1763560921524,0.0434,91443.0,91442.0,0.3608]
[1763560922923,0.0434,91443.0,91442.0,0.46636]
[1763560923530,0.0434,91443.0,91442.0,0.46836]
[1763560924617,0.0434,91443.0,91442.0,0.3628]
[1763560924823,0.04278,91435.0,91434.0,0.2150487]
[1763560925820,0.04278,91435.0,91434.0,0.1094487]
[1763560926031,0.04178,91434.0,91433.0,0.00016402]
[1763560926216,0.1512287,91434.0,91433.0,0.00016402]
[1763560926417,0.04178,91434.0,91433.0,0.00016402]
[1763560926826,0.04078,91434.0,91433.0,0.00016402]
[1763560927129,0.03978,91434.0,91433.0,0.00016402]
[1763560927431,0.04078,91434.0,91433.0,0.00016402]
[1763560927933,0.04078,91434.0,91433.0,0.02333402]
[1763560928633,0.04078,91434.0,91433.0,0.04438402]
[1763560929441,0.04078,91434.0,91433.0,0.00016402]
[1763560930134,0.04278,91431.0,91430.0,0.00012872]
[1763560930433,0.04278,91423.0,91422.0,0.1326329]
[1763560930735,0.04278,91423.0,91422.0,0.1094629]
[1763560930933,0.04278,91423.0,91422.0,0.1536829]
[1763560931343,0.04288811,91423.0,91422.0,0.1536829]
[1763560931531,0.00010811,91423.0,91422.0,0.1536829]
[1763560932633,0.00999999,91430.0,91429.0,0.1536747]
[1763560932838,0.00016402,91432.0,91431.0,0.04422]
[1763560933038,0.00016402,91432.0,91431.0,0.40502]
[1763560933339,0.05653402,91432.0,91431.0,0.40502]
[1763560933524,0.00016402,91432.0,91431.0,0.40502]
[1763560934329,0.00116402,91432.0,91431.0,0.40502]
[1763560935043,0.05753402,91432.0,91431.0,0.04422]
[1763560935242,0.1094547,91429.0,91426.0,0.02317]
[1763560935544,0.1094547,91429.0,91421.0,0.3608]
[1763560935545,0.04278,91422.0,91421.0,0.1536843]
[1763560935737,0.04278,91422.0,91421.0,0.2593243]
[1763560936038,0.04278,91422.0,91421.0,0.1536843]
[1763560936240,0.04278,91422.0,91421.0,0.2593243]
[1763560937543,0.04278,91430.0,91429.0,0.1536747]
[1763560937736,0.04497803,91430.0,91429.0,0.1536747]
[1763560938244,0.05637,91422.0,91421.0,0.14986]
[1763560938440,0.05637,91422.0,91415.0,0.1326414]
[1763560938441,0.04278,91416.0,91415.0,0.1326414]
[1763560938634,0.04278,91416.0,91415.0,0.2382814]
[1763560938833,0.04278,91416.0,91415.0,0.2593314]
[1763560939543,0.04278,91416.0,91415.0,0.14986]
[1763560940144,0.04278,91416.0,91415.0,0.04422]
[1763560940534,0.1522514,91415.0,91414.0,0.2593318]
[1763560940735,0.04278,91414.0,91413.0,0.00016402]
[1763560942234,0.05637,91408.0,91407.0,0.1094802]
[1763560942440,0.152261,91407.0,91406.0,0.00027351]
[1763560943646,0.1522718,91398.0,91397.0,0.00016402]
[1763560944444,0.04278,91398.0,91397.0,0.00016402]
[1763560945346,0.48607863,91400.0,91386.0,0.00011655]
[1763560945347,0.155885,91387.0,91386.0,0.00011655]
[1763560945646,0.04638,91367.0,91366.0,0.15521383]
[1763560946348,0.00219803,91370.0,91366.0,0.15521383]
[1763560946649,0.00219803,91370.0,91369.0,0.04541]
[1763560946650,0.04857803,91370.0,91369.0,0.04541]
[1763560946835,0.04866749,91370.0,91368.0,0.1095278]
[1763560947042,0.04866749,91370.0,91366.0,0.00127363]
[1763560947043,0.04638,91367.0,91366.0,0.00127363]
[1763560947241,0.04638,91360.0,91348.0,0.109551]
[1763560947440,0.04638,91360.0,91352.0,0.1095463]
[1763560947441,0.40937803,91360.0,91352.0,0.1095463]
[1763560947743,0.40837803,91360.0,91351.0,0.1095475]
[1763560947940,0.40837803,91360.0,91356.0,0.1095418]
[1763560948948,0.40837803,91360.0,91359.0,0.04557411]
[1763560949241,0.38517803,91360.0,91359.0,0.04557411]
[1763560949446,0.00219803,91360.0,91359.0,0.16235411]
[1763560949637,0.01008945,91370.0,91359.0,0.16235411]
[1763560949638,8.946e-05,91370.0,91369.0,0.1549366]
[1763560949842,8.946e-05,91370.0,91369.0,0.5157366]
[1763560950244,0.3608,91397.0,91376.0,0.1549281]
[1763560950439,0.40718,91397.0,91396.0,0.1549042]
[1763560950650,0.43488542,91397.0,91396.0,0.1549042]
[1763560950839,0.3608,91397.0,91396.0,0.1549042]
[1763560951240,0.3608477,91397.0,91396.0,0.1549042]
[1763560952445,0.3840277,91397.0,91396.0,0.04541]
[1763560952952,0.04281,91388.0,91387.0,0.04443411]
[1763560953143,0.41681,91388.0,91387.0,0.04443411]
[1763560953340,0.41681,91388.0,91387.0,0.00016411]
[1763560953944,0.41681,91388.0,91387.0,0.04443411]
[1763560954258,0.38213,91388.0,91387.0,0.04443411]
[1763560954546,0.41681,91388.0,91387.0,0.00016411]
[1763560955348,0.44453572,91388.0,91387.0,0.00016411]
[1763560955652,0.04281,91379.0,91378.0,0.10568]
[1763560955843,0.04281,91371.0,91370.0,0.02155]
[1763560956040,0.04281,91368.0,91367.0,0.12723]
[1763560956553,0.04281,91368.0,91367.0,0.14995]
[1763560956944,0.00219803,91370.0,91369.0,0.04427]
[1763560958554,0.02352803,91370.0,91369.0,0.04427]
[1763560958854,0.00219803,91370.0,91369.0,0.04427]
[1763560959550,0.02352803,91370.0,91369.0,0.04427]
[1763560959752,0.02352803,91370.0,91367.0,0.10668]
[1763560959753,0.04281,91368.0,91367.0,0.001]
[1763560959953,0.04281,91368.0,91367.0,0.12723]
[1763560960454,0.04281,91368.0,91367.0,0.10568]
[1763560960650,0.0428577,91368.0,91367.0,0.10568]
[1763560961056,0.0428577,91368.0,91367.0,0.10668]
[1763560962859,0.0428577,91368.0,91367.0,0.14995]
[1763560962860,4.77e-05,91368.0,91367.0,0.14995]
[1763560963349,0.00016411,91377.0,91376.0,0.1537881]
[1763560963748,0.3608,91388.0,91387.0,0.153775]
[1763560964956,0.41681,91388.0,91387.0,0.153775]
[1763560965151,0.00073267,91390.0,91389.0,0.04427]
[1763560965348,0.0284918,91390.0,91389.0,0.04427]
[1763560965550,0.00073267,91390.0,91389.0,0.04427]
[1763560965953,0.04354267,91390.0,91389.0,0.04427]
[1763560966752,0.04454267,91390.0,91389.0,0.04427]
[1763560967054,0.00173267,91390.0,91389.0,0.04427]
[1763560967258,0.04454267,91390.0,91389.0,0.04427]
[1763560967649,0.04454267,91390.0,91389.0,0.14995]
[1763560967850,0.04454267,91390.0,91389.0,0.10568]
[1763560968052,0.02952778,91390.0,91389.0,0.14995]
[1763560968258,0.02954116,91390.0,91389.0,0.14995]
[1763560968756,0.02880849,91390.0,91389.0,0.14995]
[1763560968956,0.02954116,91390.0,91389.0,0.14995]
[1763560969261,0.0295413,91390.0,91389.0,0.14995]
[1763560970948,0.0723513,91390.0,91389.0,0.14995]
[1763560971961,0.04281,91379.0,91378.0,0.00016411]
[1763560972261,0.07063783,91379.0,91378.0,0.00016411]
[1763560972653,0.18015233,91379.0,91378.0,0.00016411]
[1763560973950,0.05601,91366.0,91365.0,0.1310808]
[1763560974357,0.00073267,91370.0,91364.0,0.3608]
[1763560974358,0.02206267,91370.0,91369.0,0.1537965]
[1763560974559,0.04354267,91370.0,91369.0,0.1537965]
[1763560974764,0.07137984,91370.0,91369.0,0.1537965]
[1763560975464,0.02856984,91370.0,91369.0,0.1537965]
[1763560976266,0.00073267,91370.0,91369.0,0.2594765]
[1763560976757,0.04354267,91370.0,91369.0,0.2594765]
[1763560977065,0.05674267,91370.0,91369.0,0.2594765]
[1763560977262,0.00073267,91370.0,91369.0,0.2594765]
[1763560977959,0.00073267,91370.0,91369.0,0.14995]
[1763560977960,0.05674267,91370.0,91369.0,0.14995]
[1763560979958,0.05674267,91370.0,91369.0,0.10568]
[1763560980158,0.04281,91365.0,91364.0,0.4918819]
[1763560980360,0.04281,91365.0,91364.0,0.46648]
[1763560981467,0.04281,91365.0,91364.0,0.51075]
[1763560981663,0.02331,91370.0,91369.0,0.1546765]
[1763560981860,0.00016411,91379.0,91378.0,0.1546657]
[1763560982260,0.02761723,91379.0,91378.0,0.1546657]
[1763560982563,0.00016411,91379.0,91378.0,0.1546657]
[1763560983566,0.3608,91389.0,91388.0,0.1620438]
[1763560983770,0.04521,91404.0,91403.0,0.1317758]
[1763560984070,0.07267353,91404.0,91403.0,0.1094858]
[1763560984874,0.04521,91401.0,91400.0,0.02448803]
[1763560985062,0.07267353,91401.0,91400.0,0.02448803]
[1763560985869,0.07267353,91401.0,91400.0,0.00219803]
[1763560986663,0.04521,91395.0,91394.0,0.00016411]
[1763560987362,0.04521,91395.0,91394.0,0.02245411]
[1763560988662,0.04621,91395.0,91394.0,0.02245411]
[1763560989769,0.02431,91395.0,91394.0,0.04531411]
[1763560990564,0.04621,91395.0,91394.0,0.04531411]
[1763560991462,0.001,91395.0,91394.0,0.04531411]
[1763560991664,0.00027351,91406.0,91405.0,0.1546334]
[1763560991868,0.00027351,91406.0,91405.0,0.6211134]
[1763560992369,0.00016411,91413.0,91412.0,0.154625]
[1763560994780,0.00116411,91413.0,91412.0,0.154625]
[1763560995862,0.02447411,91413.0,91412.0,0.04515]
[1763560996074,0.00116411,91413.0,91412.0,0.04515]
[1763560996467,0.04521,91411.0,91410.0,0.00219803]
[1763560996773,0.04521,91411.0,91410.0,0.10787803]
[1763560997367,0.02331,91395.0,91394.0,0.40611411]
[1763560997576,0.1328054,91395.0,91394.0,0.51179411]
[1763560998074,0.02331,91395.0,91394.0,0.51179411]
[1763560998465,0.04521,91395.0,91394.0,0.51179411]
[1763560999165,0.04521,91395.0,91394.0,0.40611411]
[1763560999472,0.04521,91395.0,91394.0,0.15099411]
[1763560999782,0.40601,91395.0,91394.0,0.10584411]
[1763560999968,0.40601,91395.0,91394.0,0.00016411]
[1763561001478,0.40701,91395.0,91394.0,0.00016411]
[1763561001674,0.40701,91395.0,91385.0,0.3608]
[1763561001675,0.04521,91386.0,91385.0,0.3608]
[1763561001867,0.1547162,91386.0,91385.0,0.46648]
[1763561002271,0.04521,91386.0,91385.0,0.10568]
[1763561003078,0.05782,91380.0,91379.0,0.10568]
[1763561003278,0.05855267,91380.0,91379.0,0.15083]
[1763561003475,0.00073267,91380.0,91379.0,0.15083]
[1763561004074,0.06695999,91390.0,91389.0,0.1534726]
[1763561004269,0.05769267,91390.0,91389.0,0.1534726]
[1763561005083,0.05769267,91390.0,91389.0,0.02146]
[1763561005471,0.05769267,91390.0,91389.0,0.1534726]
[1763561006279,0.02405267,91390.0,91389.0,0.1534726]
[1763561006778,0.00073267,91390.0,91389.0,0.1534726]
[1763561006972,0.02405267,91390.0,91389.0,0.1534726]
[1763561007172,0.04508267,91390.0,91389.0,0.1534726]
[1763561007568,0.02405267,91390.0,91389.0,0.1534726]
[1763561007770,0.00073267,91390.0,91389.0,0.1534726]
[1763561008170,0.04508267,91390.0,91389.0,0.1534726]
[1763561008477,0.05841267,91390.0,91389.0,0.1534726]
[1763561010771,0.00016411,91395.0,91394.0,0.04397]
[1763561010977,0.3608,91415.0,91403.0,0.1534558]
[1763561011371,0.1094757,91412.0,91403.0,0.1534558]
[1763561011567,0.00999999,91410.0,91403.0,0.1534558]
[1763561011772,0.40619,91404.0,91403.0,0.1534558]
[1763561012371,0.40619,91404.0,91403.0,0.14965]
[1763561013076,0.38513,91404.0,91403.0,0.14965]
[1763561013378,0.38613,91404.0,91403.0,0.14965]
[1763561013783,0.002,91404.0,91403.0,0.14965]
[1763561014080,0.00016411,91413.0,91412.0,0.0454]
[1763561014278,0.00016411,91413.0,91412.0,0.154875]
[1763561015188,0.04555411,91413.0,91412.0,0.154875]
[1763561015386,0.04655411,91413.0,91412.0,0.154875]
[1763561015681,0.04655411,91413.0,91412.0,0.260555]
[1763561015986,0.00116411,91413.0,91412.0,0.260555]
[1763561016286,0.04655411,91413.0,91412.0,0.260555]
[1763561016486,0.04755411,91413.0,91412.0,0.15108]
[1763561016682,0.04539,91411.0,91410.0,0.00219803]
[1763561016885,0.04539,91411.0,91410.0,0.10787803]
[1763561017077,0.04539,91411.0,91410.0,0.00219803]
[1763561018178,0.04739,91411.0,91410.0,0.00219803]
[1763561018382,0.04739,91411.0,91410.0,0.02462803]
[1763561018984,0.04639,91411.0,91410.0,0.02462803]
[1763561019691,0.04539,91411.0,91410.0,0.02462803]
[1763561020290,0.04539,91411.0,91410.0,0.00219803]
[1763561020692,0.02206,91395.0,91394.0,0.40636411]
[1763561020995,0.04539,91395.0,91394.0,0.10580411]
[1763561021886,0.3608,91396.0,91395.0,0.1548954]
[1763561023095,0.40619,91396.0,91395.0,0.1094954]
[1763561023490,0.04539,91395.0,91394.0,0.10580411]
[1763561024393,0.02333,91395.0,91394.0,0.15120411]
[1763561024587,0.3608,91396.0,91394.0,0.15120411]
[1763561024794,0.3608,91396.0,91395.0,0.1548954]
[1763561025688,0.03765267,91400.0,91399.0,0.1548906]
[1763561026092,0.00073267,91400.0,91399.0,0.1548906]
[1763561026295,0.3608,91406.0,91405.0,0.1548834]
[1763561026796,0.38413,91406.0,91405.0,0.1548834]
[1763561026990,0.40619,91406.0,91405.0,0.0454]
[1763561027199,0.40619,91406.0,91405.0,0.1548834]
[1763561029497,0.40619,91406.0,91405.0,0.0454]
[1763561033196,0.38413,91406.0,91405.0,0.0454]
[1763561033403,0.01432267,91410.0,91404.0,0.1094838]
[1763561033404,0.00073267,91410.0,91409.0,0.1548786]
[1763561034116,0.02406267,91410.0,91409.0,0.1548786]
[1763561034607,0.04612267,91410.0,91409.0,0.1548786]
[1763561035006,0.04712267,91410.0,91409.0,0.1548786]
[1763561037208,0.04539,91407.0,91406.0,0.2151217]
[1763561037513,0.40619,91407.0,91406.0,0.10564]
[1763561038816,0.5156722,91407.0,91405.0,0.109483]
[1763561039007,0.1548735,91405.0,91404.0,0.1094836]
[1763561039611,0.04539,91405.0,91404.0,0.1319136]
[1763561039811,0.03565,91404.0,91400.0,0.00219803]
[1763561040117,0.1548782,91401.0,91400.0,0.00219803]
[1763561040311,0.04612267,91400.0,91399.0,0.1094897]
[1763561041615,0.04612267,91400.0,91399.0,0.1548897]
[1763561042027,0.3608,91407.0,91406.0,0.1545722]
[1763561042313,0.40569,91407.0,91406.0,0.2602122]
[1763561043203,0.0218,91407.0,91406.0,0.2602122]
[1763561043411,0.04489,91407.0,91406.0,0.2602122]
[1763561043918,0.40569,91407.0,91406.0,0.15073]
[1763561044119,0.05887,91395.0,91394.0,0.02273411]
[1763561044305,0.05887,91395.0,91394.0,0.10580411]
[1763561044512,0.05887,91395.0,91394.0,0.00016411]
[1763561044914,0.05887,91395.0,91394.0,0.04525411]
[1763561045405,0.05887,91395.0,91394.0,0.04625411]
[1763561045812,0.04489,91395.0,91394.0,0.04625411]
[1763561046004,0.04489,91400.0,91399.0,0.04509]
[1763561046215,0.04489,91395.0,91394.0,0.13323071]
[1763561046409,0.04489,91395.0,91394.0,0.15575071]
[1763561046807,0.04489,91395.0,91394.0,0.15475071]
[1763561047119,0.00999999,91400.0,91399.0,0.1545806]
[1763561047120,0.04489,91400.0,91399.0,0.1545806]
[1763561047312,0.04562267,91400.0,91399.0,0.1545806]
[1763561047513,0.00073267,91400.0,91399.0,0.1545806]
[1763561048114,0.3608,91407.0,91406.0,0.1545722]
[1763561048713,0.3826,91407.0,91406.0,0.1545722]
[1763561049916,0.05887,91400.0,91399.0,0.2602206]
[1763561050117,0.05960267,91400.0,91399.0,0.2602206]
[1763561051321,0.05960267,91400.0,91399.0,0.2151306]
[1763561051811,0.05960267,91400.0,91399.0,0.2377006]
[1763561052418,0.05960267,91400.0,91399.0,0.10564]
[1763561052621,0.05960267,91400.0,91399.0,0.15073]
[1763561053622,0.16909207,91400.0,91399.0,0.10564]
[1763561053821,0.1543854,91395.0,91394.0,0.02273411]
[1763561054023,0.5151854,91395.0,91394.0,0.00016411]
[1763561054321,0.04489,91369.0,91368.0,0.1546171]
[1763561054527,0.04489,91369.0,91368.0,0.12821]
[1763561054716,0.00073267,91370.0,91369.0,0.04509]
[1763561054916,0.0218,91380.0,91379.0,0.04509]
[1763561055117,0.05960267,91380.0,91379.0,0.04509]
[1763561056616,0.00073267,91380.0,91379.0,0.04509]
[1763561057314,0.3608,91386.0,91379.0,0.04509]
[1763561057520,0.40569,91386.0,91385.0,0.04509]
[1763561057820,0.00016411,91389.0,91388.0,0.1545938]
[1763561058017,0.00016411,91389.0,91388.0,0.2602338]
[1763561059219,0.00016411,91389.0,91388.0,0.2612338]
[1763561059624,0.04505411,91389.0,91388.0,0.2612338]
[1763561060020,0.04505411,91389.0,91388.0,0.1105038]
[1763561060216,0.04505411,91389.0,91388.0,0.10664]
[1763561060823,0.04505411,91389.0,91388.0,0.001]
[1763561061020,0.04489,91372.0,91370.0,0.00016411]
[1763561061220,0.04489,91372.0,91371.0,0.5985341]
[1763561062122,0.04489,91372.0,91371.0,0.001]
[1763561062428,0.04489,91372.0,91371.0,0.04609]
[1763561063026,0.06886999,91380.0,91379.0,0.1095145]
[1763561063332,0.04562267,91380.0,91379.0,0.04509]
[1763561063826,0.04489,91379.0,91378.0,0.1095154]
[1763561064228,0.01471267,91380.0,91371.0,0.02494]
[1763561064425,0.04329,91372.0,91371.0,0.001]
[1763561064634,0.04229,91372.0,91371.0,0.001]
[1763561064931,0.1528141,91371.0,91370.0,0.00016411]
[1763561065322,0.1518141,91371.0,91370.0,0.00016411]
[1763561065827,0.01321,91360.0,91354.0,0.1095434]
[1763561066018,0.01321,91360.0,91349.0,0.3608]
[1763561066019,0.04329,91350.0,91349.0,0.3608]
[1763561066216,0.04402267,91350.0,91349.0,0.3608]
[1763561066722,0.04302267,91350.0,91349.0,0.3608]
[1763561066921,0.04202267,91350.0,91349.0,0.3608]
[1763561067126,0.04202267,91350.0,91341.0,0.1548393]
[1763561067127,0.04329,91342.0,91341.0,0.1548393]
[1763561067330,0.04329,91342.0,91341.0,0.1095593]
[1763561067624,0.04229,91341.0,91340.0,0.00236223]
[1763561068134,0.04229,91341.0,91340.0,0.0001642]
[1763561068333,0.04229,91334.0,91327.0,0.46648]
[1763561068522,0.04329,91328.0,91327.0,0.3608]
[1763561068931,0.04229,91328.0,91327.0,0.3608]
[1763561069229,0.04229,91328.0,91327.0,0.38374]
[1763561069426,0.04229,91328.0,91327.0,0.3608]
[1763561069626,0.0423979,91328.0,91327.0,0.36232321]
[1763561069822,0.0423979,91328.0,91327.0,0.36332321]
[1763561070026,0.0413979,91328.0,91327.0,0.36332321]
[1763561070218,0.0413979,91328.0,91327.0,0.00295928]
[1763561070722,0.0413979,91328.0,91327.0,0.00395928]
[1763561071122,0.0413979,91328.0,91327.0,0.02689928]
[1763561071324,0.0413979,91328.0,91327.0,0.00395928]
[1763561071829,0.1534965,91319.0,91318.0,0.00010969]
[1763561072030,0.0214,91300.0,91299.0,0.40397]
[1763561072223,0.04391,91301.0,91300.0,0.15497723]
[1763561072428,0.04391,91301.0,91300.0,0.16809912]
[1763561072429,0.0001079,91301.0,91300.0,0.16809912]
[1763561072634,0.0440179,91301.0,91300.0,0.01531992]
[1763561072828,0.0440179,91301.0,91300.0,0.05848992]
[1763561073035,0.0001079,91301.0,91300.0,0.05848992]
[1763561073227,0.0001079,91301.0,91300.0,0.06911992]
[1763561073629,0.0001079,91301.0,91300.0,0.05848992]
[1763561074129,0.0001079,91301.0,91300.0,0.05948992]
[1763561074533,0.0001079,91301.0,91300.0,0.07011992]
[1763561075544,0.0440179,91301.0,91300.0,0.01631992]
[1763561075828,0.0440179,91301.0,91300.0,0.16909922]
[1763561076235,0.0440179,91301.0,91300.0,0.05948992]
[1763561077537,0.0440179,91301.0,91300.0,0.05848992]
[1763561077926,0.0440179,91301.0,91300.0,0.03674992]
[1763561078127,0.0440179,91301.0,91300.0,0.01531992]
[1763561078321,0.4048179,91301.0,91300.0,0.01531992]
[1763561078723,0.4048179,91301.0,91300.0,0.01312189]
[1763561078926,0.04391,91292.0,91291.0,0.10572]
[1763561079232,0.02396266,91300.0,91286.0,0.00027387]
[1763561079233,0.05714,91289.0,91286.0,0.00027387]
[1763561079438,0.05714,91289.0,91288.0,0.0215584]
[1763561079631,0.04391,91289.0,91288.0,0.0432984]
[1763561079835,0.05714,91289.0,91288.0,0.0432984]
[1763561080631,0.05614,91289.0,91288.0,0.0432984]
[1763561081032,0.05614,91289.0,91288.0,0.0001284]
[1763561081532,0.05614,91289.0,91288.0,0.0011284]
[1763561081734,0.05614,91289.0,91288.0,0.1107521]
[1763561082235,0.04391,91289.0,91288.0,0.0011284]
[1763561082532,0.04391,91289.0,91288.0,0.0442984]
[1763561082942,0.03820502,91289.0,91288.0,0.0442984]
[1763561083236,0.00073267,91290.0,91289.0,0.1527925]
[1763561083936,0.01016429,91310.0,91300.0,0.04317]
[1763561084138,0.4048179,91301.0,91300.0,0.04536803]
[1763561084339,0.04391,91290.0,91289.0,0.38223]
[1763561084642,0.04464267,91290.0,91289.0,0.40397]
[1763561084842,0.00073267,91290.0,91289.0,0.40397]
[1763561085043,0.3609079,91301.0,91300.0,0.04317]
[1763561085233,0.3609079,91301.0,91300.0,0.05818803]
[1763561085434,0.4048179,91301.0,91300.0,0.04536803]
[1763561085635,0.514426,91301.0,91300.0,0.00219803]
[1763561085835,0.04391,91293.0,91292.0,0.10576]
[1763561086240,0.40471,91293.0,91292.0,0.10576]
[1763561087449,0.40471,91293.0,91292.0,0.14893]
[1763561088341,0.02322999,91300.0,91292.0,0.14893]
[1763561088543,0.00073267,91300.0,91299.0,0.1527805]
[1763561090047,0.02213267,91300.0,91299.0,0.1527805]
[1763561090239,0.05787267,91300.0,91299.0,0.1527805]
[1763561090439,0.0214,91294.0,91293.0,0.40397]
[1763561090742,0.0214,91294.0,91293.0,0.5135873]
[1763561090940,0.04391,91294.0,91293.0,0.5135873]
[1763561091334,0.02322999,91300.0,91299.0,0.1096105]
[1763561091541,0.00073267,91300.0,91299.0,0.1527805]
[1763561092247,0.04464267,91300.0,91299.0,0.1527805]
[1763561092950,0.00073267,91300.0,91299.0,0.1527805]
[1763561093146,0.04464267,91300.0,91299.0,0.1527805]
[1763561093446,0.05787267,91300.0,91299.0,0.1527805]
[1763561093848,0.00073267,91300.0,91299.0,0.1527805]
[1763561094149,0.02213267,91300.0,91299.0,0.1527805]
[1763561094342,0.04464267,91300.0,91299.0,0.04317]
[1763561094544,0.04464267,91300.0,91293.0,0.40397]
[1763561094545,0.04391,91294.0,91293.0,0.40397]
[1763561095047,0.0214,91294.0,91293.0,0.1527877]
[1763561095352,0.00999999,91300.0,91299.0,0.1527805]
[1763561095551,0.02855415,91300.0,91299.0,0.1527805]
[1763561095752,0.07246415,91300.0,91299.0,0.1527805]
[1763561095953,0.04391,91290.0,91289.0,0.3608]
[1763561096148,0.04464267,91290.0,91289.0,0.513592]
[1763561096352,0.05787267,91290.0,91289.0,0.3608]
[1763561096553,0.0857156,91290.0,91289.0,0.3608]
[1763561096738,0.0857156,91290.0,91286.0,0.00027387]
[1763561096739,0.0214,91289.0,91286.0,0.00027387]
[1763561096939,0.07175293,91289.0,91286.0,0.00027387]
[1763561097138,0.04924293,91289.0,91288.0,0.0432984]
[1763561097342,0.07175293,91289.0,91288.0,0.0432984]
[1763561097540,0.07175293,91289.0,91288.0,0.0001284]
[1763561099846,0.07175293,91289.0,91288.0,0.0432984]
[1763561100450,0.07175293,91289.0,91288.0,0.0215584]
[1763561100841,0.02784293,91289.0,91288.0,0.0432984]
[1763561101243,0.00999999,91300.0,91299.0,0.04317]
[1763561101444,0.03850071,91300.0,91299.0,0.1527805]
[1763561101844,0.02850072,91300.0,91299.0,0.1527805]
[1763561102650,0.02850072,91300.0,91299.0,0.04317]
[1763561102651,0.07309072,91300.0,91299.0,0.04317]
[1763561103040,0.02850072,91300.0,91299.0,0.04317]
[1763561105057,0.02776805,91300.0,91299.0,0.04317]
[1763561105357,0.3609643,91310.0,91309.0,0.1543085]
[1763561105564,0.3609643,91310.0,91309.0,0.2601085]
[1763561106153,0.0001643,91310.0,91309.0,0.2601085]
[1763561106356,0.3608,91327.0,91309.0,0.2601085]
[1763561106357,0.03890678,91319.0,91318.0,0.04471]
[1763561106660,0.03672267,91320.0,91319.0,0.1542965]
[1763561106863,0.00073267,91320.0,91319.0,0.1542965]
[1763561107153,0.05991267,91320.0,91319.0,0.1542965]
[1763561107361,0.39970678,91327.0,91326.0,0.04471]
[1763561107654,0.38308,91327.0,91326.0,0.04471]
[1763561107858,0.04547,91324.0,91323.0,0.12876]
[1763561108163,0.04547,91324.0,91323.0,0.15051]
[1763561108551,0.04547,91324.0,91323.0,0.12876]
[1763561110150,0.04547,91324.0,91323.0,0.15051]
[1763561110356,0.002,91324.0,91323.0,0.15051]
[1763561110560,0.002,91324.0,91323.0,0.51131]
[1763561110946,0.002,91324.0,91323.0,0.6208917]
[1763561111348,0.04747,91324.0,91323.0,0.51131]
[1763561111565,0.04747,91324.0,91323.0,0.04471]
[1763561111750,0.04547,91321.0,91320.0,0.00219803]
[1763561112263,0.04547,91321.0,91320.0,0.04690803]
[1763561112468,0.02428,91324.0,91323.0,0.04471]
[1763561113065,0.001,91324.0,91323.0,0.04471]
[1763561113264,0.3608,91327.0,91326.0,0.04471]
[1763561113454,0.0001643,91329.0,91327.0,0.1095769]
[1763561113660,0.0456343,91329.0,91328.0,0.04471]
[1763561114463,0.0001643,91329.0,91328.0,0.04471]
[1763561114670,0.0021643,91329.0,91328.0,0.04471]
[1763561115060,0.0244443,91329.0,91328.0,0.04471]
[1763561115360,0.0244443,91329.0,91328.0,0.15051]
[1763561115966,0.0476343,91329.0,91328.0,0.1058]
[1763561116256,0.0466343,91329.0,91328.0,0.1058]
[1763561116470,0.0486343,91329.0,91328.0,0.1058]
[1763561117768,0.0486343,91329.0,91328.0,0.15051]
[1763561118157,0.0334343,91329.0,91328.0,0.15051]
[1763561118356,0.0102443,91329.0,91328.0,0.15051]
[1763561118557,0.003,91329.0,91328.0,0.15051]
[1763561120762,0.003,91329.0,91328.0,0.51131]